{"text_format":"1","workbook":"xlsx","n_sheets":3,"sheets":["INTRO","ANNUAL_WORKPLAN","Example"],"not_rendered":{"charts":0,"images":1,"macros":0,"external_links":0,"defined_names":1,"comments":0,"pivot_tables":0},"unopened":[],"bounds":{"document_bytes":16777216,"sheet_cells":100000,"rows_first":2000,"rows_last":500,"rows_between":2000,"halvings":0,"cell_chars":16384,"cell_head_chars":4096},"cells_cut":0,"cells_raw":0,"read":"whole","date_system":"1900"}

{"sheet":"INTRO","index":0,"n_rows":24,"n_cols":3,"rows_kept":24,"cut":false,"hidden":false,"merged":[[2,1,2,4],[3,1,5,4],[7,1,7,4],[22,2,22,4],[23,2,23,4]]}
[]
[]
[null,"Plan de travail annuel"]
[null,"Dans le cadre des efforts mondiaux visant à accélérer l'expansion de la chimioprévention pour l'élimination de la filariose lymphatique et la lutte contre la schistosomiase, les géohelminthiases et l'onchocercose, l'Organisation mondiale de la Santé (OMS) facilite l'approvisionnement en médicaments nécessaires. Pour demander des médicaments, il est indispensable de fournir le plan de travail annuel avec le formulaire de demande commune de médicaments pour la chimioprévention des maladies tropicales négligées et le formulaire de rapport commun. "]
[]
[]
[]
[null,"Le plan de travail annuel permet aux programmes nationaux d'identifier les objectifs spécifiques à atteindre dans l'année, pour se concentrer sur les activités clés qui doivent être mises en œuvre pour atteindre les dits objectifs, et d'identifier les lacunes dans les ressources financières et techniques pour atteindre ces objectifs. Il permet également à l'OMS de surveiller de près l'état d'avancement des programmes nationaux, d'identifier les obstacles et de se coordonner pour offrir un soutien financier et technique en temps voulu."]
[]
[null,"Informations à inclure dans le plan de travail annuel"]
[null,null,"  Nom du pays"]
[null,null,"  Année de mise en oeuvre"]
[null,null,"  Maladies concernées par la chimioprévention"]
[null,null,"  Objectifs programmatiques spécifiques à réaliser dans l'année  "]
[null,null,"  Matrice du plan de travail annuel comportant une liste des activités et sous-activités avec : "]
[null,null,"       -  Chronologie de la mise en oeuvre"]
[null,null,"       -  Coût estimé"]
[null,null,"       -  Fonds disponibles ou engagés"]
[null,null,"       -  Déficit de financement"]
[null,null,"       -  Bailleurs de fonds"]
[]
[null,"Format du plan de travail annuel"]
[null,"i)","Il n'y a pas de format prescrit, le plan de travail annuel peut être un fichier Excel ou Word, tant que l'information requise y figure.  Un exemple est donné dans la fiche suivante."]
[null,"ii) ","Une matrice du plan de travail annuel peut être générée automatiquement à l'aide de l'outil de planification et d'établissement intégrés des coûts (TIPAC)."]

{"sheet":"ANNUAL_WORKPLAN","index":1,"n_rows":40,"n_cols":17,"rows_kept":40,"cut":false,"hidden":false,"merged":[[1,1,1,5],[12,0,13,0],[12,1,12,12],[12,16,13,16],[7,1,7,16],[8,1,8,16],[9,1,9,16]]}
["PLAN DE TRAVAIL ANNUEL"]
["1. Nom du pays"]
[]
["2. Année de mise en oeuvre",null,null,"à"]
[null,"mois","année",null,"mois","année"]
["3. Maladies concernées par la CP"]
[]
["4. Objectifs spécifiques à atteindre ","i) "]
["    dans l'année","ii) "]
[null,"iii) "]
[]
["5. Matrice du plan de travail annuel"]
["Activités et sous-activités","Calendrier de mise en oeuvre",null,null,null,null,null,null,null,null,null,null,null,"Coût estimé","Fonds disponibles","Déficit budgétaire","Bailleurs de fonds"]
[null,{"$f":"IF(B4=0,\"\",B4)","v":""},{"$f":"IF($B$4=\"Jan\",\"Fév\",IF($B$4=\"Fév\",\"Mars\",IF($B$4=\"Mars\",\"Avr\",IF($B$4=\"Avr\",\"Mai\",IF($B$4=\"Mai\",\"Juin\",IF($B$4=\"Juin\",\"Juil\",IF($B$4=\"Juil\",\"Août\",IF($B$4=\"Août\",\"Sep\",IF($B$4=\"Sep\",\"Oct\",IF($B$4=\"Oct\",\"Nov\",IF($B$4=\"Nov\",\"Déc\",IF($B$4=\"Déc\",\"Jan\",\"\"))))))))))))","v":""},{"$f":"IF($B$4=\"Jan\",\"Mars\",IF($B$4=\"Fév\",\"Avr\",IF($B$4=\"Mars\",\"Mai\",IF($B$4=\"Avr\",\"Juin\",IF($B$4=\"Mai\",\"Juil\",IF($B$4=\"Juin\",\"Août\",IF($B$4=\"Juil\",\"Sep\",IF($B$4=\"Août\",\"Oct\",IF($B$4=\"Sep\",\"Nov\",IF($B$4=\"Oct\",\"Déc\",IF($B$4=\"Nov\",\"Jan\",IF($B$4=\"Déc\",\"Fév\",\"\"))))))))))))","v":""},{"$f":"IF($B$4=\"Jan\",\"Avr\",IF($B$4=\"Fév\",\"Mai\",IF($B$4=\"Mars\",\"Juin\",IF($B$4=\"Avr\",\"Juil\",IF($B$4=\"Mai\",\"Août\",IF($B$4=\"Juin\",\"Sep\",IF($B$4=\"Juil\",\"Oct\",IF($B$4=\"Août\",\"Nov\",IF($B$4=\"Sep\",\"Déc\",IF($B$4=\"Oct\",\"Jan\",IF($B$4=\"Nov\",\"Fév\",IF($B$4=\"Déc\",\"Mars\",\"\"))))))))))))","v":""},{"$f":"IF($B$4=\"Jan\",\"Mai\",IF($B$4=\"Fév\",\"Juin\",IF($B$4=\"Mars\",\"Juil\",IF($B$4=\"Avr\",\"Août\",IF($B$4=\"Mai\",\"Sep\",IF($B$4=\"Juin\",\"Oct\",IF($B$4=\"Juil\",\"Nov\",IF($B$4=\"Août\",\"Déc\",IF($B$4=\"Sep\",\"Jan\",IF($B$4=\"Oct\",\"Fév\",IF($B$4=\"Nov\",\"Mars\",IF($B$4=\"Déc\",\"Avr\",\"\"))))))))))))","v":""},{"$f":"IF($B$4=\"Jan\",\"Juin\",IF($B$4=\"Fév\",\"Juil\",IF($B$4=\"Mars\",\"Août\",IF($B$4=\"Avr\",\"Sep\",IF($B$4=\"Mai\",\"Oct\",IF($B$4=\"Juin\",\"Nov\",IF($B$4=\"Juil\",\"Déc\",IF($B$4=\"Août\",\"Jan\",IF($B$4=\"Sep\",\"Fév\",IF($B$4=\"Oct\",\"Mars\",IF($B$4=\"Nov\",\"Avr\",IF($B$4=\"Déc\",\"Mai\",\"\"))))))))))))","v":""},{"$f":"IF($B$4=\"Jan\",\"Juil\",IF($B$4=\"Fév\",\"Août\",IF($B$4=\"Mars\",\"Sep\",IF($B$4=\"Avr\",\"Oct\",IF($B$4=\"Mai\",\"Nov\",IF($B$4=\"Juin\",\"Déc\",IF($B$4=\"Juil\",\"Jan\",IF($B$4=\"Août\",\"Fév\",IF($B$4=\"Sep\",\"Mars\",IF($B$4=\"Oct\",\"Avr\",IF($B$4=\"Nov\",\"Mai\",IF($B$4=\"Déc\",\"Juin\",\"\"))))))))))))","v":""},{"$f":"IF($B$4=\"Jan\",\"Août\",IF($B$4=\"Fév\",\"Sep\",IF($B$4=\"Mars\",\"Oct\",IF($B$4=\"Avr\",\"Nov\",IF($B$4=\"Mai\",\"Déc\",IF($B$4=\"Juin\",\"Jan\",IF($B$4=\"Juil\",\"Fév\",IF($B$4=\"Août\",\"Mars\",IF($B$4=\"Sep\",\"Avr\",IF($B$4=\"Oct\",\"Mai\",IF($B$4=\"Nov\",\"Juin\",IF($B$4=\"Déc\",\"Juil\",\"\"))))))))))))","v":""},{"$f":"IF($B$4=\"Jan\",\"Sep\",IF($B$4=\"Fév\",\"Oct\",IF($B$4=\"Mars\",\"Nov\",IF($B$4=\"Avr\",\"Déc\",IF($B$4=\"Mai\",\"Jan\",IF($B$4=\"Juin\",\"Fév\",IF($B$4=\"Juil\",\"Mars\",IF($B$4=\"Août\",\"Avr\",IF($B$4=\"Sep\",\"Mai\",IF($B$4=\"Oct\",\"Juin\",IF($B$4=\"Nov\",\"Juil\",IF($B$4=\"Déc\",\"Août\",\"\"))))))))))))","v":""},{"$f":"IF($B$4=\"Jan\",\"Oct\",IF($B$4=\"Fév\",\"Nov\",IF($B$4=\"Mars\",\"Déc\",IF($B$4=\"Avr\",\"Jan\",IF($B$4=\"Mai\",\"Fév\",IF($B$4=\"Juin\",\"Mars\",IF($B$4=\"Juil\",\"Avr\",IF($B$4=\"Août\",\"Mai\",IF($B$4=\"Sep\",\"Juin\",IF($B$4=\"Oct\",\"Juil\",IF($B$4=\"Nov\",\"Août\",IF($B$4=\"Déc\",\"Sep\",\"\"))))))))))))","v":""},{"$f":"IF($B$4=\"Jan\",\"Nov\",IF($B$4=\"Fév\",\"Déc\",IF($B$4=\"Mars\",\"Jan\",IF($B$4=\"Avr\",\"Fév\",IF($B$4=\"Mai\",\"Mars\",IF($B$4=\"Juin\",\"Avr\",IF($B$4=\"Juil\",\"Mai\",IF($B$4=\"Août\",\"Juin\",IF($B$4=\"Sep\",\"Juil\",IF($B$4=\"Oct\",\"Août\",IF($B$4=\"Nov\",\"Sep\",IF($B$4=\"Déc\",\"Oct\",\"\"))))))))))))","v":""},{"$f":"IF($B$4=\"Jan\",\"Déc\",IF($B$4=\"Fév\",\"Jan\",IF($B$4=\"Mars\",\"Fév\",IF($B$4=\"Avr\",\"Mars\",IF($B$4=\"Mai\",\"Avr\",IF($B$4=\"Juin\",\"Mai\",IF($B$4=\"Juil\",\"Juin\",IF($B$4=\"Août\",\"Juil\",IF($B$4=\"Sep\",\"Août\",IF($B$4=\"Oct\",\"Sep\",IF($B$4=\"Nov\",\"Oct\",IF($B$4=\"Déc\",\"Nov\",\"\"))))))))))))","v":""},"USD","USD","USD"]
["Planification annuelle et revue",null,null,null,null,null,null,null,null,null,null,null,null,null,null,{"$f":"N15-O15","v":0}]
["Réunion de planification annuelle",null,null,null,null,null,null,null,null,null,null,null,null,null,null,{"$f":"N16-O16","v":0}]
["Réunion des intervenants nationaux",null,null,null,null,null,null,null,null,null,null,null,null,null,null,0]
["Formation",null,null,null,null,null,null,null,null,null,null,null,null,null,null,0]
["Formation des personnes distribuant les médicaments",null,null,null,null,null,null,null,null,null,null,null,null,null,null,0]
["Formation pour les enquêtes nationales d'évaluation de la transmission",null,null,null,null,null,null,null,null,null,null,null,null,null,null,0]
["Mobilisation sociale",null,null,null,null,null,null,null,null,null,null,null,null,null,null,0]
["Logistique des médicaments",null,null,null,null,null,null,null,null,null,null,null,null,null,null,0]
["Demande de médicaments",null,null,null,null,null,null,null,null,null,null,null,null,null,null,0]
["Reconditionnement des médicaments",null,null,null,null,null,null,null,null,null,null,null,null,null,null,0]
["Transport des médicaments dans les districts",null,null,null,null,null,null,null,null,null,null,null,null,null,null,0]
["Distribution des médicaments",null,null,null,null,null,null,null,null,null,null,null,null,null,null,0]
["MDA1 (IVM + ALB)",null,null,null,null,null,null,null,null,null,null,null,null,null,null,0]
["MDA2 (DEC + ALB)",null,null,null,null,null,null,null,null,null,null,null,null,null,null,0]
["MDA3 (IVM)",null,null,null,null,null,null,null,null,null,null,null,null,null,null,0]
["T1 (ALB/MBD + PZQ)",null,null,null,null,null,null,null,null,null,null,null,null,null,null,0]
["T2 (PZQ)",null,null,null,null,null,null,null,null,null,null,null,null,null,null,0]
["T3 (ALB/MBD)",null,null,null,null,null,null,null,null,null,null,null,null,null,null,0]
["Suivi et évaluation",null,null,null,null,null,null,null,null,null,null,null,null,null,null,0]
["Sites de surveillance sentinelles pour la filariose lymphatique",null,null,null,null,null,null,null,null,null,null,null,null,null,null,0]
["SCH et/ou STH enquête de prévalence",null,null,null,null,null,null,null,null,null,null,null,null,null,null,0]
["ONCHO enquête épidémiologique",null,null,null,null,null,null,null,null,null,null,null,null,null,null,0]
["FL enquête d'évaluation de la transmission",null,null,null,null,null,null,null,null,null,null,null,null,null,null,0]
["Evaluation Unité 1",null,null,null,null,null,null,null,null,null,null,null,null,null,null,0]
["Evaluation Unité 2",null,null,null,null,null,null,null,null,null,null,null,null,null,null,0]
["6. Pièce(s) jointe(s)"]

{"sheet":"Example","index":2,"n_rows":50,"n_cols":20,"rows_kept":50,"cut":false,"hidden":false,"merged":[[1,4,1,8],[7,4,7,19],[8,4,8,19],[9,4,9,19],[12,0,13,0],[12,4,12,15],[12,19,13,19]]}
["PLAN DE TRAVAIL ANNUEL"]
["1. Nom du pays",null,null,null,"TCHAD"]
[]
["2. Année de mise en oeuvre",null,null,null,"Avr",2019,"à","Déc",2019]
[null,null,null,null,"mois","année",null,"mois","année"]
["3. Maladies concernées par la CP"]
[]
["4. Objectifs spécifiques à atteindre ",null,null,null,"i) Atteindre 100% de couverture géographique au niveau national pour ONCJO, FL  et 75% pour les géohelminthiases (STH) et la schistosomiase (SCH)"]
["    dans l'année",null,null,null,"ii)  Atteindre 80% de couverture thérapeutique de l'Oncho et 80% de couverture thérapeutique de la FL au niveau national  FL au niveau national"]
[null,null,null,null,"iii) Mener des  évaluation entomologique pourL'ONCHOCERCOSE"]
[]
["5. Matrice du plan de travail annuel"]
["Activités et sous-activités",null,null,null,"Calendrier de mise en oeuvre",null,null,null,null,null,null,null,null,null,null,null,"Coût estimé","Fonds disponibles","Déficit budgétaire","Bailleurs de fonds"]
[null,"Janv","Fev","Mars",{"$f":"IF(E4=0,\"\",E4)","v":"Avr"},{"$f":"IF($E$4=\"Jan\",\"Fév\",IF($E$4=\"Fév\",\"Mars\",IF($E$4=\"Mars\",\"Avr\",IF($E$4=\"Avr\",\"Mai\",IF($E$4=\"Mai\",\"Juin\",IF($E$4=\"Juin\",\"Juil\",IF($E$4=\"Juil\",\"Août\",IF($E$4=\"Août\",\"Sep\",IF($E$4=\"Sep\",\"Oct\",IF($E$4=\"Oct\",\"Nov\",IF($E$4=\"Nov\",\"Déc\",IF($E$4=\"Déc\",\"Jan\",\"\"))))))))))))","v":"Mai"},{"$f":"IF($E$4=\"Jan\",\"Mars\",IF($E$4=\"Fév\",\"Avr\",IF($E$4=\"Mars\",\"Mai\",IF($E$4=\"Avr\",\"Juin\",IF($E$4=\"Mai\",\"Juil\",IF($E$4=\"Juin\",\"Août\",IF($E$4=\"Juil\",\"Sep\",IF($E$4=\"Août\",\"Oct\",IF($E$4=\"Sep\",\"Nov\",IF($E$4=\"Oct\",\"Déc\",IF($E$4=\"Nov\",\"Jan\",IF($E$4=\"Déc\",\"Fév\",\"\"))))))))))))","v":"Juin"},{"$f":"IF($E$4=\"Jan\",\"Avr\",IF($E$4=\"Fév\",\"Mai\",IF($E$4=\"Mars\",\"Juin\",IF($E$4=\"Avr\",\"Juil\",IF($E$4=\"Mai\",\"Août\",IF($E$4=\"Juin\",\"Sep\",IF($E$4=\"Juil\",\"Oct\",IF($E$4=\"Août\",\"Nov\",IF($E$4=\"Sep\",\"Déc\",IF($E$4=\"Oct\",\"Jan\",IF($E$4=\"Nov\",\"Fév\",IF($E$4=\"Déc\",\"Mars\",\"\"))))))))))))","v":"Juil"},{"$f":"IF($E$4=\"Jan\",\"Mai\",IF($E$4=\"Fév\",\"Juin\",IF($E$4=\"Mars\",\"Juil\",IF($E$4=\"Avr\",\"Août\",IF($E$4=\"Mai\",\"Sep\",IF($E$4=\"Juin\",\"Oct\",IF($E$4=\"Juil\",\"Nov\",IF($E$4=\"Août\",\"Déc\",IF($E$4=\"Sep\",\"Jan\",IF($E$4=\"Oct\",\"Fév\",IF($E$4=\"Nov\",\"Mars\",IF($E$4=\"Déc\",\"Avr\",\"\"))))))))))))","v":"Août"},{"$f":"IF($E$4=\"Jan\",\"Juin\",IF($E$4=\"Fév\",\"Juil\",IF($E$4=\"Mars\",\"Août\",IF($E$4=\"Avr\",\"Sep\",IF($E$4=\"Mai\",\"Oct\",IF($E$4=\"Juin\",\"Nov\",IF($E$4=\"Juil\",\"Déc\",IF($E$4=\"Août\",\"Jan\",IF($E$4=\"Sep\",\"Fév\",IF($E$4=\"Oct\",\"Mars\",IF($E$4=\"Nov\",\"Avr\",IF($E$4=\"Déc\",\"Mai\",\"\"))))))))))))","v":"Sep"},{"$f":"IF($E$4=\"Jan\",\"Juil\",IF($E$4=\"Fév\",\"Août\",IF($E$4=\"Mars\",\"Sep\",IF($E$4=\"Avr\",\"Oct\",IF($E$4=\"Mai\",\"Nov\",IF($E$4=\"Juin\",\"Déc\",IF($E$4=\"Juil\",\"Jan\",IF($E$4=\"Août\",\"Fév\",IF($E$4=\"Sep\",\"Mars\",IF($E$4=\"Oct\",\"Avr\",IF($E$4=\"Nov\",\"Mai\",IF($E$4=\"Déc\",\"Juin\",\"\"))))))))))))","v":"Oct"},{"$f":"IF($E$4=\"Jan\",\"Août\",IF($E$4=\"Fév\",\"Sep\",IF($E$4=\"Mars\",\"Oct\",IF($E$4=\"Avr\",\"Nov\",IF($E$4=\"Mai\",\"Déc\",IF($E$4=\"Juin\",\"Jan\",IF($E$4=\"Juil\",\"Fév\",IF($E$4=\"Août\",\"Mars\",IF($E$4=\"Sep\",\"Avr\",IF($E$4=\"Oct\",\"Mai\",IF($E$4=\"Nov\",\"Juin\",IF($E$4=\"Déc\",\"Juil\",\"\"))))))))))))","v":"Nov"},{"$f":"IF($E$4=\"Jan\",\"Sep\",IF($E$4=\"Fév\",\"Oct\",IF($E$4=\"Mars\",\"Nov\",IF($E$4=\"Avr\",\"Déc\",IF($E$4=\"Mai\",\"Jan\",IF($E$4=\"Juin\",\"Fév\",IF($E$4=\"Juil\",\"Mars\",IF($E$4=\"Août\",\"Avr\",IF($E$4=\"Sep\",\"Mai\",IF($E$4=\"Oct\",\"Juin\",IF($E$4=\"Nov\",\"Juil\",IF($E$4=\"Déc\",\"Août\",\"\"))))))))))))","v":"Déc"},{"$f":"IF($E$4=\"Jan\",\"Oct\",IF($E$4=\"Fév\",\"Nov\",IF($E$4=\"Mars\",\"Déc\",IF($E$4=\"Avr\",\"Jan\",IF($E$4=\"Mai\",\"Fév\",IF($E$4=\"Juin\",\"Mars\",IF($E$4=\"Juil\",\"Avr\",IF($E$4=\"Août\",\"Mai\",IF($E$4=\"Sep\",\"Juin\",IF($E$4=\"Oct\",\"Juil\",IF($E$4=\"Nov\",\"Août\",IF($E$4=\"Déc\",\"Sep\",\"\"))))))))))))","v":"Jan"},{"$f":"IF($E$4=\"Jan\",\"Nov\",IF($E$4=\"Fév\",\"Déc\",IF($E$4=\"Mars\",\"Jan\",IF($E$4=\"Avr\",\"Fév\",IF($E$4=\"Mai\",\"Mars\",IF($E$4=\"Juin\",\"Avr\",IF($E$4=\"Juil\",\"Mai\",IF($E$4=\"Août\",\"Juin\",IF($E$4=\"Sep\",\"Juil\",IF($E$4=\"Oct\",\"Août\",IF($E$4=\"Nov\",\"Sep\",IF($E$4=\"Déc\",\"Oct\",\"\"))))))))))))","v":"Fév"},{"$f":"IF($E$4=\"Jan\",\"Déc\",IF($E$4=\"Fév\",\"Jan\",IF($E$4=\"Mars\",\"Fév\",IF($E$4=\"Avr\",\"Mars\",IF($E$4=\"Mai\",\"Avr\",IF($E$4=\"Juin\",\"Mai\",IF($E$4=\"Juil\",\"Juin\",IF($E$4=\"Août\",\"Juil\",IF($E$4=\"Sep\",\"Août\",IF($E$4=\"Oct\",\"Sep\",IF($E$4=\"Nov\",\"Oct\",IF($E$4=\"Déc\",\"Nov\",\"\"))))))))))))","v":"Mars"},"USD","USD","USD"]
["Planification annuelle et revue",null,null,null,null,null,null,null,null,null,null,null,null,null,null,null,null,null,{"$f":"Q15-R15","v":0}]
["Réunion de planification annuelle",null,null,null,null,null,null,null,null,null,null,null,null,null,null,null,15000,null,{"$f":"Q16-R16","v":15000}]
["Réunion des intervenants nationaux",null,null,null,null,null,null,null,null,null,null,null,null,null,null,null,6000,6000,0,"ETAT"]
["Reunion Comité d'Experts elimination ONCHO/FL",null,null,null,null,null,null,null,null,null,null,null,null,null,null,null,35000,35000,0,"END FUND"]
["Equipement et fonctionnement PNEOFL",null,null,null,null,null,null,null,null,null,null,null,null,null,null,null,{"$f":"21850+12650","v":34500},3000,31500]
["Formation",null,null,null,null,null,null,null,null,null,null,null,null,null,null,null,null,null,0," "]
["Formation des personnes distribuant les médicaments",null,null,null,null,null,null,null,null,null,null,null,null,null,null,null,{"$f":"71057+59810+94120-52320-30600-54135+92974+118909-60750-71325-40000","v":127740},5000,122740,"ETAT"]
["Formation pour les enquêtes nationales d'évaluation de la transmission",null,null,null,null,null,null,null,null,null,null,null,null,null,null,null,40474,0,40474]
["Mobilisation sociale",null,null,null,null,null,null,null,null,null,null,null,null,null,null,null,null,null,0," "]
["plaidoyer et sensibilisation ",null,null,null,null,null,null,null,null,null,null,null,null,null,null,null,{"$f":"18250+40860","v":59110},5000,54110,"ETAT"]
["Logistique des médicaments",null,null,null,null,null,null,null,null,null,null,null,null,null,null,null,null,null,0," "]
["Demande Acquisition  de médicaments",null,null,null,null,null,null,null,null,null,null,null,null,null,null,null,{"$f":"15000000/500","v":30000},30000,0,"ETAT"]
["Reconditionnement des médicaments",null,null,null,null,null,null,null,null,null,null,null,null,null,null,null,2800,2800,0,"ETAT"]
["Transport des médicaments dans les districts",null,null,null,null,null,null,null,null,null,null,null,null,null,null,null,14640,13412,1228]
["Distribution des médicaments",null,null,null,null,null,null,null,null,null,null,null,null,null,null,null,null,null,0]
["MDA1 (IVM + ALB)",null,null,null,null,null,null,null,null,null,null,null,null,null,null,null,{"$f":"52320+5000+59135","v":116455},10000,106455,"ETAT"]
["MDA2 (DEC + ALB)",null,null,null,null,null,null,null,null,null,null,null,null,null,null,null,null,0,0]
["MDA3 (IVM)",null,null,null,null,null,null,null,null,null,null,null,null,null,null,null,55650,0,55650]
["T1 (ALB/MBD + PZQ)",null,null,null,null,null,null,null,null,null,null,null,null,null,null,null,57650,0,57650]
["T2 (PZQ)",null,null,null,null,null,null,null,null,null,null,null,null,null,null,null,96325,10000,86325,"ETAT"]
["T3 (ALB/MBD)",null,null,null,null,null,null,null,null,null,null,null,null,null,null,null,45750,10000,35750,"ETAT"]
["Gestion de morbidite FL",null,null,null,null,null,null,null,null,null,null,null,null,null,null,null,18750,null,18750]
["Supervision et gestion des données ",null,null,null,null,null,null,null,null,null,null,null,null,null,null,null,16200,5000,11200,"ETAT"]
["Suivi et évaluation",null,null,null,null,null,null,null,null,null,null,null,null,null,null,null,null,null,0]
["Sites de surveillance sentinelles pour la filariose lymphatique",null,null,null,null,null,null,null,null,null,null,null,null,null,null,null,30200,null,30200]
["SCH et/ou STH enquête de prévalence",null,null,null,null,null,null,null,null,null,null,null,null,null,null,null,null,0,0]
["ONCHO enquête épidémiologique/Entomologie",null,null,null,null,null,null,null,null,null,null,null,null,null,null,null,108753,0,108753]
["Monitorage de couvertures",null,null,null,null,null,null,null,null,null,null,null,null,null,null,null,49256,null,49256]
["FL enquête d'évaluation de la transmission",null,null,null,null,null,null,null,null,null,null,null,null,null,null,null,null,null,0]
["Evaluation Unité 1",null,null,null,null,null,null,null,null,null,null,null,null,null,null,null,null,null,0]
["Evaluation Unité 2"]
["TOTAL",null,null,null,null,null,null,null,null,null,null,null,null,null,null,null,{"$f":"SUM(Q16:Q45)","v":960253},{"$f":"SUM(R16:R45)","v":135212},825041]
[]
[]
[]
["6. Pièce(s) jointe(s)"]